[Event "Polish University-ch Open 2024"]
[Site "Lublin"]
[Date "2024.02.24"]
[Round "6.8"]
[White "Koziorowicz, Michal"]
[Black "Dalkowski, Rafal"]
[Result "0-1"]
[ECO "B12"]
[WhiteElo "2324"]
[BlackElo "2093"]
[Annotator "TA"]
[PlyCount "108"]
[EventDate "2024.02.22"]
[EventType "swiss"]
[EventCountry "POL"]
[SourceTitle "playchess.com"]
[Source "ChessBase"]
[SourceQuality "1"]
[TimeControl "600+3"]

{[%evp 11,108,-37,51,62,49,52,41,30,13,-17,0,-28,-19,-14,-26,-28,-27,-22,-36,-45,-40,-9,-27,-308,-293,-324,39,34,54,47,114,116,118,8,171,44,35,39,41,0,192,190,197,179,196,181,231,235,218,0,0,0,0,-20,304,272,255,28,19,50,204,218,581,576,531,-14,0,-29963,-534,-29971,-29972,-29972,-29972,-29986,-29987,-29987,-29974,-5728,-29977,-29974,-29975,-29980,-29981,-29981,-29982,-29982,-29983,-29983,-29984,-29984,-29984,-29984,-29983,-29993,-29985,-29985,-29986,-29985,-29986]} 1. e4 {[%emt 0:01:23]} c6 {[%emt 0:00:02]} 2. d4 {[%emt 0:00:00]} d5 {[%emt 0:00:02]} 3. e5 {[%emt 0:00:01]} Bf5 {[%emt 0:00:02]} 4. Nc3 {[%emt 0:00:02]} e6 {[%emt 0:00:02]} 5. g4 {[%emt 0:00:03]} Bg6 {[%emt 0:00:02]} 6. Nge2 {[%emt 0:00:01][%cal Bg1e2,Be2f4,Bf4h5][%mdl 32]} h5 {[%emt 0:00:13]} (6... c5 $15) 7. Nf4 $14 {[%emt 0:00:04]} Bh7 {[%emt 0:00:02]} 8. g5 {[%emt 0:00:17]} (8. gxh5 c5 $11) 8... Bf5 {[%emt 0:00:26]} 9. Nxh5 {[%emt 0:00:13] White is slightly better.} c5 {[%emt 0:00:27]} 10. Nb5 {[%emt 0:00:53][%cal Ob5d6]} Nc6 {[%emt 0:00:35][%cal Oh8h5]} 11. Nd6+ {[%emt 0:00:08]} Bxd6 {[%emt 0:00:04]} 12. Nxg7+ {[%emt 0:00:01]} Kf8 $1 {[%emt 0:00:23]} 13. Nxf5 {[%emt 0:00:02]} exf5 {[%emt 0:00:04]} 14. exd6 {[%emt 0:00:03]} Qxd6 {[%emt 0:00:03]} 15. dxc5 {[%emt 0:00:49]} Re8+ {[%emt 0:00:12]} 16. Be2 $1 {[%emt 0:00:01]} Qxc5 {[%emt 0:01:13]} 17. Be3 {[%emt 0:00:21][%mdl 8192] Against Nd4} (17. Kf1 $11 {and White has nothing to worry.} Rh4 18. g6 fxg6 19. Bg5) 17... d4 $19 {[%emt 0:00:13]} 18. Bf4 {[%emt 0:00:01]} Qb4+ $2 {[%emt 0:00:56]} (18... Rh4 $19 19. Qd2 Qc4) 19. Qd2 $14 {[%emt 0:00:37]} Qb5 {[%emt 0:00:36][%cal Oh8h4]} 20. a4 {[%emt 0:00:58]} (20. Qd3 {simplifies} Qxd3 21. cxd3 Nge7 22. Bg3) 20... Qd5 {[%emt 0:00:02] Repels Bd6+} (20... Qxb2 $14 21. O-O Qc3) 21. O-O $36 {[%emt 0:00:03][%mdl 2048] White is on the roll.} Nge7 {[%emt 0:00:05]} 22. c4 {[%emt 0:00:59]} (22. Bg3 $16) 22... Qe4 $2 {[%emt 0:00:41]} (22... Qc5 $1 $11) 23. f3 {[%emt 0:00:03]} (23. Rae1 $1 $18 Ng6 24. Bd6+ Kg7 25. Bd1) 23... Qe6 $14 {[%emt 0:00:06]} 24. Bd3 {[%emt 0:00:02] Rae1 would now be deadly. This pair of bishops is nice.} Ng6 {[%emt 0:00:14]} 25. Rae1 {[%emt 0:00:11]} Qd7 {[%emt 0:00:02]} (25... Nce5 $1 $11 {and Black stays safe.} 26. Bxe5 Nxe5) 26. Rxe8+ $18 {[%emt 0:00:04]} Kxe8 {[%emt 0:00:02]} 27. Re1+ {[%emt 0:00:03]} Kf8 {[%emt 0:04:35]} 28. b4 {[%emt 0:00:23]} a5 {[%emt 0:00:00]} (28... Rh3 {was worth a try.}) 29. bxa5 {[%emt 0:00:18]} Kg7 {[%emt 0:00:06] [#]} 30. Rb1 $2 {[%emt 0:00:12]} (30. Bg3 $1 $18) 30... Nce5 $11 {[%emt 0:00:00]} 31. Be2 {[%emt 0:00:33] Hoping for Bxe5+.} d3 {[%emt 0:00:00] ...Nxf4 is the strong threat.} 32. Bd1 {[%emt 0:00:39]} Qd4+ {[%emt 0:00:00][%mdl 8192]} (32... Nxc4 $2 33. Qc3+ Kg8 34. Qxc4 $18) (32... Nxf4 $11 33. Qxf4 Ng6) 33. Be3 $18 {[%emt 0:00:04]} Qh4 {[%emt 0:00:00]} 34. f4 $2 {[%emt 0:00:15]} (34. Rxb7 Nxc4 35. Rb4 Nxd2 $11) ({White has to play} 34. Qf2 $18) 34... Nxc4 $11 {[%emt 0:00:00]} 35. Bd4+ {[%emt 0:00:16]} Kg8 $2 {[%emt 0:00:00]} (35... Kf8 $1 $14 36. Bc5+ (36. Qxd3 Qxh2+ 37. Kf1 Nxf4 38. Bc5+ Ke8 39. Qf3 Nd2+ 40. Ke1 Nxf3+ 41. Bxf3 Qg3+ 42. Kd2 Rh2+) (36. Qb4+ Kg8 $11) 36... Kg7 37. Bd4+ Kf8 38. Bc5+ (38. Qxd3 Qxh2+ 39. Kf1 Nxf4 40. Bc5+ Ke8 41. Qf3 Nd2+ 42. Ke1 Nxf3+ 43. Bxf3 Qg3+ 44. Kd2 Rh2+ 45. Kc3 Qxf3+) (38. Qb4+ Kg8 $11) 38... Kg8) 36. Qf2 $18 {[%emt 0:00:11]} Nxf4 $2 {[%emt 0:00:00]} (36... Qxf2+ {is more resistant.} 37. Bxf2 Nxa5) 37. Qxh4 {[%emt 0:00:07]} Rxh4 {[%emt 0:00:00] [#]} 38. Bc3 $2 {[%emt 0:00:35]} (38. a6 $1 $18 {[%cal Ra6b7]} Ne3 (38... bxa6 $2 {perishes.} 39. Rb8+ Kh7 40. Rh8+ Kg6 41. Rxh4 $18) (38... Nh3+ $2 39. Kg2 $18) 39. Bxe3 bxa6 40. Rb3) 38... Ne3 {[%emt 0:00:00] White must now prevent ...Nh3+.} 39. Be1 $2 {[%emt 0:00:24][%mdl 8192]} (39. Bf3 $11) 39... Nh3+ {[%emt 0:00:00]} 40. Kh1 {[%emt 0:00:01]} Rf4 {[%emt 0:00:00][%cal Rf4f1]} 41. Bf3 {[%emt 0:00:26]} Rxf3 {[%emt 0:00:00][%cal Rf3f1]} 42. Bc3 {[%emt 0:00:05]} Rf2 {[%emt 0:00:00]} 43. Bd4 {[%emt 0:00:12]} Re2 {[%emt 0:00:00]} 44. Bxe3 {[%emt 0:00:02]} Rxe3 {[%emt 0:00:00][%mdl 4096] Endgame. KRN-KR} 45. Kg2 {[%emt 0:00:00] Black mates.} Nxg5 {[%emt 0:00:00]} 46. Rxb7 {[%emt 0:00:02]} d2 {[%emt 0:00:00]} 47. Rd7 {[%emt 0:00:01]} Ne4 {[%emt 0:00:00]} 48. a6 {[%emt 0:00:01]} Ra3 {[%emt 0:00:00]} 49. a7 {[%emt 0:00:14]} Rxa4 {[%emt 0:00:00]} 50. Kf3 {[%emt 0:00:01]} Kg7 {[%emt 0:00:01]} 51. Ke2 {[%emt 0:00:01]} Ra2 {[%emt 0:00:05]} 52. Rc7 {[%emt 0:00:05]} Ra1 {[%emt 0:00:04]} 53. Rd7 {[%emt 0:00:02] [#]} d1=Q+ $1 {[%emt 0:01:02]} 54. Rxd1 {[%emt 0:00:03]} Nc3+ {[%emt 0:00:00] Quite a comeback for Black.   Weighted Error Value: White=0.47/Black=0.57.  Loses game:     	White=2     	Black=3      Missed win:     	White=3     	Black=1      Mistake:       	White=2     	Black=4      Inaccurate:     	White=4     	---        OK:         	White=10    	Black=9      Best:        	White=6     	Black=8      Strong:       	White=1     	Black=1} 0-1

[Event "Polish University-ch Open 2024"]
[Site "Lublin"]
[Date "2024.02.24"]
[Round "6.9"]
[White "Walter, Szymon"]
[Black "Kukula, Pawel"]
[Result "1-0"]
[ECO "B23"]
[WhiteElo "2305"]
[BlackElo "2135"]
[Annotator "RC"]
[PlyCount "59"]
[EventDate "2024.02.22"]
[EventType "swiss"]
[EventCountry "POL"]
[SourceTitle "playchess.com"]
[Source "ChessBase"]
[SourceQuality "1"]
[TimeControl "600+3"]

1. e4 {[%emt 0:00:02]} c5 {[%emt 0:00:04]} 2. Nc3 {[%emt 0:00:07]} Nc6 {[%emt 0:00:07]} 3. f4 {[%emt 0:00:03]} g6 {[%emt 0:00:03]} 4. Nf3 {[%emt 0:00:03]} Bg7 {[%emt 0:00:02]} 5. Bb5 {[%emt 0:00:01]} Nd4 {[%emt 0:00:05]} 6. a4 {[%emt 0:00:09]} a6 {[%emt 0:01:04]} 7. Bc4 {[%emt 0:00:03]} d6 {[%emt 0:00:08]} 8. O-O {[%emt 0:00:28]} e6 {[%emt 0:00:24]} 9. d3 {[%emt 0:00:15]} Ne7 {[%emt 0:00:03]} 10. Nxd4 {[%emt 0:00:03]} cxd4 {[%emt 0:00:05]} 11. Ne2 {[%emt 0:00:01]} d5 {[%emt 0:00:09]} 12. Bb3 {[%emt 0:00:03]} dxe4 {[%emt 0:00:04]} 13. dxe4 {[%emt 0:00:03]} Nc6 {[%emt 0:00:08]} 14. f5 {[%emt 0:00:44]} exf5 {[%emt 0:00:49]} 15. exf5 {[%emt 0:00:02]} Bxf5 {[%emt 0:00:01]} 16. Ng3 {[%emt 0:01:36]} Be6 {[%emt 0:00:11]} 17. Bxe6 {[%emt 0:00:11]} fxe6 {[%emt 0:00:01]} 18. Qg4 {[%emt 0:00:21]} Qd5 {[%emt 0:00:32]} 19. Bg5 {[%emt 0:00:11]} Ne5 {[%emt 0:00:26]} 20. Qh4 {[%emt 0:00:07]} Nf7 {[%emt 0:03:56]} 21. Bf6 {[%emt 0:00:33]} Bxf6 {[%emt 0:00:21]} 22. Rxf6 {[%emt 0:00:02]} O-O {[%emt 0:00:36]} 23. Ne4 {[%emt 0:01:36]} Qe5 {[%emt 0:00:54]} 24. Re1 {[%emt 0:02:47]} Kg7 {[%emt 0:00:43]} 25. Rff1 {[%emt 0:00:36]} Qh5 {[%emt 0:00:10]} 26. Qf6+ {[%emt 0:00:04]} Kg8 {[%emt 0:00:00]} 27. Qxe6 {[%emt 0:00:01]} Rae8 {[%emt 0:00:02]} 28. Nf6+ {[%emt 0:00:02]} Kh8 {[%emt 0:00:04]} 29. Qxe8 {[%emt 0:00:06]} Rxe8 {[%emt 0:00:02]} 30. Rxe8+ {[%emt 0:00:02]} 1-0

[Event "Polish University-ch Open 2024"]
[Site "Lublin"]
[Date "2024.02.24"]
[Round "6.10"]
[White "Skurniak, Szymon"]
[Black "Suder, Jakub"]
[Result "0-1"]
[ECO "B20"]
[WhiteElo "2096"]
[BlackElo "2333"]
[Annotator "TA"]
[PlyCount "49"]
[EventDate "2024.02.22"]
[EventType "swiss"]
[EventCountry "POL"]
[SourceTitle "playchess.com"]
[Source "ChessBase"]
[SourceQuality "1"]
[TimeControl "600+3"]

{[%evp 9,49,0,0,0,8,-6,12,-50,-11,-38,-33,-27,-27,-91,-77,-108,-82,-156,-154,-213,-129,-130,0,-217,-186,-166,-153,-287,-289,-583,-597,-522,-368,-400,-392,-367,-334,-466,-461,-493,-478,-894]} 1. e4 {[%emt 0:00:02][%cal Be2e4,Be4e5][%mdl 32]} c5 {[%emt 0:03:09]} 2. b3 {[%emt 0:00:10]} Nf6 {[%emt 0:00:03]} 3. e5 {[%emt 0:00:02]} Nd5 {[%emt 0:00:01]} 4. Bb2 {[%emt 0:00:03]} g6 {[%emt 0:00:02]} 5. g3 {[%emt 0:00:03]} Bg7 {[%emt 0:00:02]} 6. Bg2 {[%emt 0:00:01]} Nc7 {[%emt 0:00:01]} 7. Nf3 {[%emt 0:00:50]} Nc6 {[%emt 0:00:05]} 8. O-O {[%emt 0:00:07]} ({White should try} 8. d4 $11) 8... O-O {[%emt 0:00:08]} (8... d6 $5) 9. Re1 {[%emt 0:00:18]} d6 {[%emt 0:00:13]} 10. Na3 {[%emt 0:00:53]} Bg4 {[%emt 0:00:09]} 11. Nc4 {[%emt 0:00:02]} (11. Qc1 $11 {keeps the balance.}) 11... d5 $17 {[%emt 0:00:24]} 12. Na3 {[%emt 0:01:54]} Qc8 {[%emt 0:00:17]} 13. c4 {[%emt 0:00:35] [#]} ({Better is} 13. Qe2) 13... d4 $1 {[%emt 0:00:07][%cal Oc6e5]} 14. Qc2 {[%emt 0:00:37]} (14. d3 $17) 14... Bf5 {[%emt 0:00:54]} 15. Qd1 {[%emt 0:00:04]} Bg4 {[%emt 0:00:01]} (15... Nb4 $17 16. Nh4 Nd3) 16. Qc2 $19 {[%emt 0:00:06]} Nb4 $36 {[%emt 0:00:05][%mdl 2048] Black has strong initiative.} 17. Qe4 {[%emt 0:00:09]} Bf5 {[%emt 0:00:05]} 18. Qh4 {[%emt 0:00:03]} (18. Qe2 $17 {was the only defense.}) 18... Nd3 {[%emt 0:00:16][%csl LRb2,LRe1]} 19. Ng5 $2 {[%emt 0:01:48] [#]} (19. Rab1 {was necessary.}) 19... h6 {[%emt 0:00:12]} ({Stronger than} 19... Nxb2 20. Qxh7#) 20. Ne4 {[%emt 0:00:02]} Nxb2 {[%emt 0:01:49]} 21. Nxc5 {[%emt 0:00:01]} Ne6 {[%emt 0:00:21]} 22. Nxe6 {[%emt 0:00:08]} Qxe6 {[%emt 0:00:28]} 23. Bd5 {[%emt 0:00:49]} Qd7 {[%emt 0:00:12]} 24. Qxd4 {[%emt 0:00:18]} Nd3 {[%emt 0:00:05]} 25. Bxf7+ {[%emt 0:00:04] Weighted Error Value: White=0.53/Black=0.24 (precise) .  Mistake:       	White=7     	Black=1      Inaccurate:     	White=3     	Black=2      OK:         	White=6     	Black=7      Best:        	---       	Black=2      Strong:       	---       	Black=1} (25. Re3 $142) 0-1

[Event "Polish University-ch Open 2024"]
[Site "Lublin"]
[Date "2024.02.24"]
[Round "6.11"]
[White "Redzisz, Michal"]
[Black "Golecki, Jan"]
[Result "0-1"]
[ECO "E12"]
[WhiteElo "2229"]
[BlackElo "2185"]
[Annotator "TA"]
[PlyCount "74"]
[EventDate "2024.02.22"]
[EventType "swiss"]
[EventCountry "POL"]
[SourceTitle "playchess.com"]
[Source "ChessBase"]
[SourceQuality "1"]
[TimeControl "600+3"]

{[%evp 18,74,45,38,44,0,-19,-7,0,0,0,-6,0,-2,0,0,71,8,8,0,0,8,0,2,12,6,6,12,12,0,10,13,18,19,137,127,302,-73,-63,-82,-90,-91,-52,-47,-37,-98,-72,-655,0,-650,-604,-1199,-1199,-29965,-29963,-29963,-6454,-5414,-619]} 1. d4 {[%emt 0:00:55]} Nf6 {[%emt 0:00:02]} 2. Nf3 {[%emt 0:00:33]} e6 {[%emt 0:00:19]} 3. c4 {[%emt 0:00:27]} b6 {[%emt 0:00:02]} 4. a3 {[%emt 0:00:21]} Bb7 {[%emt 0:00:07]} 5. Nc3 {[%emt 0:00:03]} d5 {[%emt 0:00:02]} 6. cxd5 {[%emt 0:00:05]} Nxd5 {[%emt 0:00:03]} 7. Qc2 {[%emt 0:00:08]} Be7 {[%emt 0:01:36]} 8. e4 {[%emt 0:00:03]} Nxc3 {[%emt 0:00:03]} 9. bxc3 {[%emt 0:00:01]} c5 {[%emt 0:01:59]} 10. Bb5+ {[%emt 0:00:43]} Bc6 {[%emt 0:00:01]} 11. Bxc6+ {[%emt 0:01:31]} (11. Bd3 $14) 11... Nxc6 $11 {[%emt 0:00:02]} 12. O-O {[%emt 0:00:07][%cal Od4d5]} O-O {[%emt 0:00:08][%cal Rc5d4] The position is equal.} 13. Rd1 {[%emt 0:00:35]} cxd4 {[%emt 0:00:02]} 14. cxd4 {[%emt 0:00:01]} Rc8 {[%emt 0:00:02][%cal Oc6d4] next ...Nxd4! is good for Black.} 15. Qe2 {[%emt 0:00:58]} Na5 {[%emt 0:00:44]} 16. Bf4 {[%emt 0:00:29]} Nc4 {[%emt 0:00:03] [#]} (16... Qd7 $11) 17. a4 {[%emt 0:00:02]} (17. d5 $1 $16 {[%cal Rd5d6] aiming for d6!} Bc5 18. d6 (18. Qxc4 $2 Bxf2+ 19. Kxf2 Rxc4 $19) (18. dxe6 Qe8 $16)) 17... Bd6 {[%emt 0:00:37]} 18. Rac1 {[%emt 0:00:39] Strongly threatening e5.} Bxf4 {[%emt 0:01:16]} 19. Rxc4 {[%emt 0:00:01]} Rxc4 {[%emt 0:00:03]} 20. Qxc4 {[%emt 0:00:01]} Qc8 {[%emt 0:00:01]} 21. Qb3 {[%emt 0:00:33]} Rd8 {[%emt 0:00:15]} 22. g3 {[%emt 0:00:17]} Bd6 {[%emt 0:00:05]} 23. d5 {[%emt 0:00:18]} exd5 {[%emt 0:00:33]} 24. Rxd5 {[%emt 0:00:40]} Bc5 {[%emt 0:00:44]} 25. Ne5 {[%emt 0:00:47]} Rf8 {[%emt 0:00:22] Black is weak on the light squares} (25... Rxd5 $11 26. Qxd5 Qc7) 26. Rd7 $16 {[%emt 0:00:36]} Bxf2+ $2 {[%emt 0:00:25]} 27. Kxf2 $2 {[%emt 0:00:05]} (27. Kg2 $1 $18) 27... Qc5+ $17 {[%emt 0:00:01]} 28. Kf3 {[%emt 0:00:13]} Qxe5 {[%emt 0:00:02]} 29. Rxa7 {[%emt 0:00:02][%mdl 4096] Endgame. KQR-KQR} Qf6+ {[%emt 0:00:04]} 30. Kg2 {[%emt 0:00:05]} Rd8 {[%emt 0:00:12] Dodges Rd7} 31. Qe3 {[%emt 0:00:11] Against Rd2+} (31. Qc2 $15) 31... g6 {[%emt 0:00:23]} 32. Rb7 $2 {[%emt 0:00:02][%mdl 8192]} (32. Qf2 $17 Qe6 33. e5) 32... Rd1 $2 {[%emt 0:00:01]} ({Black should try} 32... Qb2+ $19 33. Kh3 Rd2 34. Rxb6 Rxh2+ 35. Kg4 h5+ (35... Qe5 $2 36. Kf3 $19) 36. Kf3 Qa1 37. Rxg6+ fxg6 38. Qb3+ Kg7 (38... Kh7 $2 39. Qf7+ Qg7 40. Qxg7+ Kxg7 41. g4 $19)) 33. Qe2 $2 {[%emt 0:00:05][%mdl 8192]} (33. Qf4 $11 Qxf4 34. gxf4) 33... Qd4 $19 {[%emt 0:00:02]} 34. Rb8+ {[%emt 0:00:03]} Kg7 {[%emt 0:00:01][%cal Od1d2] White must now prevent ...Rd2!} 35. Kh3 {[%emt 0:00:02] [#]} Rd2 $1 {[%emt 0:00:13]} (35... Qxa4 36. Qb2+ Kh6 37. Qe2 $17) 36. Qf3 {[%emt 0:00:04]} Qd7+ {[%emt 0:01:16]} (36... Qxa4 37. Qc3+ Qd4 38. Qxd4+ Rxd4 39. Rxb6 $11) (36... Qb2 $142 37. g4 Rxh2+ (37... Qe5 $2 38. Qg3 $19) 38. Kg3 Qe5+ 39. Qf4 Rh3+ 40. Kxh3 Qxf4 41. Ra8 Qxe4 42. Rc8 h5 (42... Qxa4 $2 43. Rc3 $19) 43. gxh5 Qe6+ 44. Kg3 Qxc8 45. Kf4 gxh5 46. a5 bxa5 47. Kf3 a4 48. Kf2 a3 49. Kg3 a2 50. Kf4 a1=Q (50... a1=B {is a self mate.} 51. Ke4 Qe8+ 52. Kd5 Qb5+ 53. Ke4 Qb3 54. Kf4 Qd3 55. Kg5 Qf3 56. Kh4 Qg4#) 51. Ke3 Qe1+ (51... Qcc3+ $2 52. Kf4 Qa4+ 53. Kg5 Qg4#) 52. Kd4 Qcc3+ 53. Kd5 Qe6#) 37. Qg4 {[%emt 0:00:03] [#]} Rxh2+ $3 {[%emt 0:00:03][%mdl 512] Quite a comeback for Black.   Weighted Error Value: White=1.09/Black=0.58.  Loses game:     	White=2     	Black=1      Missed win:     	White=1     	Black=1      Mistake:       	White=3     	Black=2      Inaccurate:     	White=1     	Black=1      OK:         	White=10    	Black=7      Best:        	---       	Black=2} 0-1

[Event "Polish University-ch Open 2024"]
[Site "Lublin"]
[Date "2024.02.24"]
[Round "6.12"]
[White "Kulesza, Andrzej"]
[Black "Lukasiewicz, Krzysztof"]
[Result "1-0"]
[ECO "B19"]
[WhiteElo "2076"]
[BlackElo "2290"]
[Annotator "RC"]
[PlyCount "47"]
[EventDate "2024.02.22"]
[EventType "swiss"]
[EventCountry "POL"]
[SourceTitle "playchess.com"]
[Source "ChessBase"]
[SourceQuality "1"]
[TimeControl "600+3"]

1. e4 {[%emt 0:00:04]} c6 {[%emt 0:01:22]} 2. d4 {[%emt 0:00:12]} d5 {[%emt 0:00:02]} 3. Nd2 {[%emt 0:00:02]} dxe4 {[%emt 0:00:01]} 4. Nxe4 {[%emt 0:00:02]} Bf5 {[%emt 0:00:01]} 5. Ng3 {[%emt 0:00:02]} Bg6 {[%emt 0:00:01]} 6. Nf3 {[%emt 0:00:04]} Nd7 {[%emt 0:00:01]} 7. h4 {[%emt 0:00:03]} h6 {[%emt 0:00:02]} 8. h5 {[%emt 0:00:02]} Bh7 {[%emt 0:00:01]} 9. Bd3 {[%emt 0:00:04]} Bxd3 {[%emt 0:00:02]} 10. Qxd3 {[%emt 0:00:02]} e6 {[%emt 0:00:01]} 11. Bd2 {[%emt 0:00:22]} Ngf6 {[%emt 0:00:04]} 12. O-O-O {[%emt 0:00:03]} Be7 {[%emt 0:00:01]} 13. Kb1 {[%emt 0:00:07]} O-O {[%emt 0:00:05]} 14. Ne4 {[%emt 0:00:05]} c5 {[%emt 0:00:03]} 15. Bc1 {[%emt 0:01:20]} Qb6 {[%emt 0:01:07]} 16. Nxf6+ {[%emt 0:01:10]} Nxf6 {[%emt 0:00:04]} 17. g4 {[%emt 0:00:33]} Nxg4 {[%emt 0:00:02]} 18. Rdg1 {[%emt 0:00:02]} f5 {[%emt 0:00:04]} 19. Ne5 {[%emt 0:00:25]} Nxe5 {[%emt 0:02:53]} 20. dxe5 {[%emt 0:00:02]} f4 {[%emt 0:00:01]} 21. Rxg7+ {[%emt 0:00:40]} Kxg7 {[%emt 0:00:18]} 22. Qg6+ {[%emt 0:00:02]} Kh8 {[%emt 0:00:01]} 23. Qxh6+ {[%emt 0:00:19]} Kg8 {[%emt 0:00:02]} 24. Rg1+ {[%emt 0:00:53]} 1-0

[Event "Polish University-ch Open 2024"]
[Site "Lublin"]
[Date "2024.02.24"]
[Round "6.13"]
[White "Dzida, Kamil"]
[Black "Chaczynski, Kamil"]
[Result "1-0"]
[ECO "D53"]
[WhiteElo "2403"]
[BlackElo "2118"]
[Annotator "RC"]
[PlyCount "33"]
[EventDate "2024.02.22"]
[EventType "swiss"]
[EventCountry "POL"]
[SourceTitle "playchess.com"]
[Source "ChessBase"]
[SourceQuality "1"]
[TimeControl "600+3"]

1. d4 {[%emt 0:00:23]} d5 {[%emt 0:00:01]} 2. c4 {[%emt 0:00:05]} e6 {[%emt 0:00:01]} 3. Nf3 {[%emt 0:00:02]} Nf6 {[%emt 0:00:03]} 4. Nc3 {[%emt 0:00:01]} Be7 {[%emt 0:00:01]} 5. Bg5 {[%emt 0:00:04]} h6 {[%emt 0:00:06]} 6. Bxf6 {[%emt 0:00:01]} Bxf6 {[%emt 0:00:01]} 7. e3 {[%emt 0:00:02]} dxc4 {[%emt 0:01:11]} 8. Bxc4 {[%emt 0:00:02]} Nd7 {[%emt 0:00:45]} 9. O-O {[%emt 0:00:07]} O-O {[%emt 0:00:02]} 10. Bb3 {[%emt 0:00:28]} c5 {[%emt 0:00:24]} 11. Rc1 {[%emt 0:01:33]} cxd4 {[%emt 0:00:06]} 12. exd4 {[%emt 0:00:01]} Nb6 {[%emt 0:00:05]} 13. Re1 {[%emt 0:00:07]} Bd7 {[%emt 0:00:21]} 14. Ne5 {[%emt 0:00:17]} Rc8 {[%emt 0:00:14]} 15. Qg4 {[%emt 0:00:41]} Re8 {[%emt 0:01:35]} 16. Ne4 {[%emt 0:02:01]} Ba4 {[%emt 0:01:49]} 17. Rxc8 {[%emt 0:00:11]} 1-0

[Event "Polish University-ch Open 2024"]
[Site "Lublin"]
[Date "2024.02.24"]
[Round "6.14"]
[White "Chylewski, Patryk"]
[Black "Litner, Igor"]
[Result "1-0"]
[ECO "B10"]
[WhiteElo "2285"]
[BlackElo "2000"]
[Annotator "TA"]
[PlyCount "57"]
[EventDate "2024.02.22"]
[EventType "swiss"]
[EventCountry "POL"]
[SourceTitle "playchess.com"]
[Source "ChessBase"]
[SourceQuality "1"]
[TimeControl "600+3"]

{[%evp 9,57,-3,29,19,15,14,21,20,46,39,63,54,82,91,97,81,86,83,228,232,209,166,183,178,160,146,157,160,122,132,181,143,206,181,277,245,254,243,247,130,201,208,269,283,290,287,284,308,278,262]} 1. e4 {[%emt 0:00:29]} c6 {[%emt 0:00:01]} 2. Nf3 {[%emt 0:00:01]} d5 {[%emt 0:00:02]} 3. d3 {[%emt 0:00:06]} dxe4 {[%emt 0:00:03]} 4. dxe4 {[%emt 0:00:01]} Qxd1+ {[%emt 0:00:02]} 5. Kxd1 {[%emt 0:00:04][%cal Be1d1,Bd1e2,Be2e3][%mdl 32]} Bg4 {[%emt 0:00:14]} 6. Be2 {[%emt 0:00:02]} Nd7 {[%emt 0:00:15]} 7. Nfd2 {[%emt 0:00:02][%cal Bf3d2,Bd2c4,Bc4a5,Ba5c6,Bc6a7,Ba7b5][%mdl 32]} Bxe2+ {[%emt 0:00:03]} 8. Kxe2 {[%emt 0:00:02] Die Stellung ist ausgeglichen.} e5 {[%emt 0:00:05]} 9. Nc4 {[%emt 0:00:05]} f6 {[%emt 0:00:36]} 10. Be3 {[%emt 0:00:04]} b5 {[%emt 0:00:11]} 11. Na5 {[%emt 0:00:05] Weiß steht aktiver.} Bc5 {[%emt 0:01:34]} 12. Nxc6 {[%emt 0:00:29]} Bxe3 {[%emt 0:00:02]} 13. Kxe3 {[%emt 0:00:02]} Rc8 {[%emt 0:00:45]} (13... Ne7 $16 14. Nxe7 Kxe7) 14. Nxa7 $18 {[%emt 0:00:02]} Rxc2 {[%emt 0:00:01]} 15. Nxb5 {[%emt 0:00:05]} Rxb2 {[%emt 0:00:01]} 16. N1c3 {[%emt 0:00:05]} Nh6 {[%emt 0:00:19]} 17. h3 {[%emt 0:00:27] Pariert Ng4+.} O-O {[%emt 0:00:26]} 18. Rab1 {[%emt 0:00:34]} Rxb1 {[%emt 0:00:29]} 19. Rxb1 {[%emt 0:00:02]} f5 {[%emt 0:00:01]} (19... Ra8 $16 20. Rb4 Nf7) 20. f3 {[%emt 0:01:16]} Nc5 {[%emt 0:00:20]} (20... fxe4 $16 21. fxe4 Nf7) 21. Nc7 {[%emt 0:00:46] Rb5 ist eine echte Drohung.} Rc8 {[%emt 0:00:30]} (21... fxe4 {war einen Versuch wert.} 22. fxe4 Nf7) 22. N7d5 {[%emt 0:00:26] [#] Droht stark Ne7+.} Ra8 {[%emt 0:00:10]} 23. Rb5 {[%emt 0:00:10]} Na4 {[%emt 0:00:42]} 24. Ne2 {[%emt 0:01:12]} ({Besser ist} 24. Nxa4 $18 Rxa4 25. Nc3) 24... g6 {[%emt 0:00:56]} (24... fxe4 $16 25. Kxe4 (25. fxe4 Nf7 $16) 25... Nf7) 25. Ne7+ {[%emt 0:00:57]} Kf7 {[%emt 0:00:02]} 26. Nc6 {[%emt 0:00:01] Weiß hat entscheidenden Vorteil.} ({Schwächer ist} 26. Rxe5 fxe4 27. Nc6 (27. fxe4 Nb2 $11) (27. Rxe4 Nc5 $14) (27. Kxe4 Nb6 $14) 27... Nb6 $16) 26... fxe4 {[%emt 0:00:18]} 27. Nxe5+ {[%emt 0:00:08]} Kg8 {[%emt 0:00:05]} 28. fxe4 {[%emt 0:00:05]} Nf7 {[%emt 0:00:27]} 29. Nxf7 {[%emt 0:00:08] Gewichteter Fehlerwert: Weiß=0.15 (sehr präzise) /Schwarz=0.27 (präzise) .  Fehler:       	Weiß=1     	Schwarz=5     Ungenau:       	---       	Schwarz=2     OK:         	Weiß=12    	Schwarz=9     Bester:       	Weiß=1     	---} 1-0